Workbook

Sheet Dynamic SIP
G11: 5000 | I11: 5000 | K11: 25000 | M11: 100000
G13: 15 | I13: 25 | K13: 20 | M13: 15
G15: 20 | I15: 12 | K15: 15 | M15: 12
G17: =FV(G15%/12,G13*12,-G11) -> 5578499.527 | I17: =FV(I15%/4,I13*4,-I11) -> 3036438.663 | K17: =FV(K15%/2,K13*2,-K11) -> 5681412.99 | M17: =FV(M15%,M13,-M11) -> 3727971.466
G19: =G11*G13*12 -> 900000 | I19: =I11*I13*4 -> 500000 | K19: =K11*K13*2 -> 1000000 | M19: =M11*M13 -> 1500000

Sheet SIP Table
I8: 43000
B10: Tenure (In Years)
B11: Returns | C11: 5 | D11: 10 | E11: 15 | F11: 20 | G11: 25 | H11: 30 | I11: 35
B12: 0.08 | C12: =FV($B$12/12,C11*12,-$I$8) -> 3159504.819 | D12: 7866679.513 | E12: 14879643.53 | F12: 25327877.87 | G12: 40894134.97 | H12: 64085456.29 | I12: 98636946.84
B13: 0.09 | C13: =FV($B$13/12,C11*12,-$I$8) -> 3243237.888 | D13: 8321113.915 | E13: 16271448.07 | F13: 28719135.41 | G13: 48208243.3 | H13: 78721969.77 | I13: 126496732.4
B14: 0.1 | C14: =FV(B14/12,$C$11*12,-$I$8) -> 3329794.103 | D14: =FV(B14/12,$D$11*12,-$I$8) -> 8808334.093 | E14: =FV(B14/12,$E$11*12,-$I$8) -> 17822224.89 | F14: =FV(B14/12,$F$11*12,-$I$8) -> 32652859.95 | G14: =FV(B14/12,$G$11*12,-$I$8) -> 57053836.32 | H14: =FV(B14/12,$H$11*12,-$I$8) -> 97200980.77 | I14: =FV(B14/12,$I$11*12,-$I$8) -> 163255436.2
B15: 0.11 | C15: 3419277.426 | D15: 9330919.956 | E15: 19551651.72 | F15: 37222435.64 | G15: 67773731.93 | H15: 120594348.7 | I15: 211916743.8
B16: 0.12 | C16: 3511795.804 | D16: 9891663.647 | E16: 21481948.49 | F16: 42537980.71 | G16: 80790404.93 | H16: 150283457.7 | I16: 276531257.3
B17: 0.13 | C17: 3607461.324 | D17: 10493587.45 | E17: 23638214.3 | F17: 48729421.17 | G17: 96624935.38 | H17: 188050600.7 | I17: 362569079.4
B18: 0.14 | C18: 3706390.379 | D18: 11139963.22 | E18: 26048809.71 | F18: 55950138.22 | G18: 115920535.5 | H18: 236197751.6 | I18: 477426914
B19: 0.15 | C19: 3808703.834 | D19: 11834333.51 | E19: 28745790.65 | F19: 64381297.7 | G19: 139471773.4 | H19: 297701023.3 | I19: 631118747
B20: 0.16 | C20: 3914527.197 | D20: 12580534.45 | E20: 31765400.95 | F20: 74236990.45 | G20: 168260887.6 | H20: 376411638.3 | I20: 837217202.8
B21: 0.17 | C21: 4023990.808 | D21: 13382720.66 | E21: 35148631.3 | F21: 85770336.8 | G21: 203502928.3 | H21: 477317549.4 | I21: 1114137361
B22: 0.18 | C22: 4137230.024 | D22: 14245392.23 | E22: 38941854.04 | F22: 99280737.92 | G22: 246701892.3 | H22: 606884171.9 | I22: 1486888640
B23: 0.19 | C23: 4254385.412 | D23: 15173424.11 | E23: 43197543.8 | F23: 115122491.3 | G23: 299720549.3 | H23: 773498343.9 | I23: 1989466709
B24: 0.2 | C24: 4375602.959 | D24: 16172097.88 | E24: 47975095.93 | F24: 133715029 | G24: 364867328.4 | H24: 988047025.1 | I24: 2668120879
B25: 0.21 | C25: 4501034.283 | D25: 17247136.43 | E25: 53341755.97 | F25: 155555087.1 | G25: 445004462.1 | H25: 1264671914 | I25: 3585819546
B26: 0.22 | C26: 4630836.847 | D26: 18404741.48 | E26: 59373675.43 | F26: 181231172.9 | G26: 543682627 | H26: 1621753811 | I26: 4828355592
B27: 0.23 | C27: 4765174.197 | D27: 19651634.4 | E27: 66157111.07 | F27: 211440766.8 | G27: 665308615.2 | H27: 2083197109 | I27: 6512697429
B28: 0.24 | C28: 4904216.195 | D28: 20995100.52 | E28: 73789787.42 | F28: 247010780.6 | G28: 815354192.3 | H28: 2680106425 | I28: 8798415912
B29: 0.25 | C29: 5048139.266 | D29: 22443037.27 | E29: 82382444.8 | F29: 288921889.5 | G29: 1000616315 | H29: 3452975748 | I29: 1.190332546e+10
B30: 0.26 | C30: 5197126.656 | D30: 24004006.46 | E30: 92060598.38 | F30: 338337479.6 | G30: 1229541410 | H30: 4454547517 | I30: 1.612490043e+10
B31: 0.27 | C31: 5351368.702 | D31: 25687291.06 | E31: 102966537 | F31: 396638087.8 | G31: 1512629564 | H31: 5753547591 | I31: 2.186960771e+10
B32: 0.28 | C32: 5511063.106 | D32: 27502956.9 | E32: 115261595 | F32: 465462384.1 | G32: 1862938409 | H32: 7439565591 | I32: 2.969309279e+10
B33: 0.29 | C33: 5676415.224 | D33: 29461919.67 | E33: 129128733.9 | F33: 546755944.2 | G33: 2296711413 | H33: 9629433203 | I33: 4.035524868e+10
B34: 0.3 | C34: 5847638.368 | D34: 31576017.71 | E34: 144775477.4 | F34: 642829299.8 | G34: 2834161402 | H34: 1.247556192e+10 | I34: 5.489569709e+10

Sheet Need Analysis
I9: 100000000
I11: 26
I13: 15
I15: =-PMT(I13%/12,I11*12,,I9) -> 26470.4184
I17: =-PV(I13%,I11,,I9) -> 2641533.67

Sheet SWP
I4: Monthly
I5: Quarterly
I6: Half - Yearly
I7: Yearly
B8: How Many Years Withdrawal Possible? | E8: How Much Amount Should Be Invested? | I8: =IF(C12=I4,"12",IF(C12=I5,"4",IF(C12=I6,"2",IF(C12=I7,1,"NA")))) -> 4
B9: Investment Amount | C9: 100000 | E9: How Much amount want to Withdraw | F9: 7000 | I9: =NPER(C10%/I8,C11,-C9) -> 4.431194365
B10: Rate of Return in % | C10: 10 | E10: Rate of Return in % | F10: 15 | I10: =I9/I8 -> 1.107798591
B11: Withdrawal Amount | C11: 24121 | E11: Withdrawal Frequency | F11: Quarterly
B12: Withdrawal Frequency | C12: Quarterly | E12: For How Many Years | F12: 10
B13: How Many Years | C13: =IFERROR(I10,"Life Time") -> 1.107798591 | E13: What Amount Should be Invested | F13: =PV(F10%/I18,F12*I18,-F9) -> 143856.9299
I14: Monthly
I15: Quarterly
I16: Half - Yearly
B17: How Much Amount Should I Withdraw? | E17: How Much Rate of Return Required? | I17: Yearly
B18: Invested Amount | C18: 100000 | E18: Invested Amount | F18: 500000 | I18: =IF(F11=I14,"12",IF(F11=I15,"4",IF(F11=I16,"2",IF(F11=I17,1,"NA")))) -> 4
B19: Rate of Return in % | C19: 10 | E19: Amount want to Withdraw | F19: 30000
B20: Withdrawal Frequency | C20: Quarterly | E20: Withdrawal Frequency | F20: Quarterly
B21: For How Many Years | C21: 25 | E21: For How Many Years | F21: 25 | I21: Monthly
B22: How Much amount should I Withdraw | C22: =PMT(C19%/I25,C21*I25,-C18) -> 2731.187865 | E22: Required Annual Rate of Return in % | F22: =IF(I35>=0,I35,"No Rate of Return Required") -> 23.92805603 | I22: Quarterly
I23: Half - Yearly
I24: Yearly
I25: =IF(C20=I21,"12",IF(C20=I22,"4",IF(C20=I23,"2",IF(C20=I24,1,"NA")))) -> 4
I29: Monthly
I30: Quarterly
I31: Half - Yearly
I32: Yearly
I33: =IF(F20=I29,"12",IF(F20=I30,"4",IF(F20=I31,"2",IF(F20=I32,1,"NA")))) -> 4
I34: =RATE(F21*I33,F19,-F18) -> 0.05982014007
I35: =(I34*I33)*100 -> 23.92805603

Sheet Delay Cost
J7: 5000
J9: 15
J11: 15
J13: =FV(J11%/12,J9*12,-J7) -> 3342533.797
J15: 5
J17: =FV(J11%/12,(J9*12)-J15,-J7) -> 3117147.416
J19: =J13-J17 -> 225386.381

Sheet Insurance Cover
B8: Need Base Approach
B9: STEP 1 | C9: Spouse Age | D9: 30
C10: Spouse Life Expectancy | D10: 85
C11: Monthly Expense | D11: 30000
C12: Rate of Inflation | D12: 8
C13: Return Expected in % for Investment Insurance Claim Amount | D13: 9
C14: Insurance Need for Spouse | G14: =PV((((1+D13%)/(1+D12%))-1)/12,(D10-D9)*12,-D11) -> 15510842.61
C15: Others Goals
B16: STEP 2 | C16: Child Education | D16: Current Cost | E16: Years Left | F16: Inflation in %
C17: Child 1 | D17: 500000 | E17: 20 | F17: 10 | G17: =PV(((1+D13%)/(1+F17%)-1),E17,,-D17) -> 600196.901
C18: Child 2 | D18: 500000 | E18: 22 | F18: 10 | G18: =PV(((1+D13%)/(1+F18%)-1),E18,,-D18) -> 611260.2055
C19: Child 3 | G19: =PV(((1+D13%)/(1+F19%)-1),E19,,-D19) -> 0
C20: Child Marriage | D20: Current Cost | E20: Years Left | F20: Inflation in %
C21: Child 1 | D21: 600000 | E21: 23 | F21: 8 | G21: =PV(((1+D13%)/(1+F21%)-1),E21,,-D21) -> 485387.0373
C22: Child 2 | D22: 600000 | E22: 24 | F22: 8 | G22: =PV(((1+D13%)/(1+F22%)-1),E22,,-D22) -> 480933.9452
C23: Child 3 | G23: =PV(((1+D13%)/(1+F23%)-1),E23,,-D23) -> 0
C25: Need For Insurance to Protect all Goals | G25: =G14+G17+G18+G19+G21+G22+G23 -> 17688620.7
B27: STEP 3 | C27: + Current Loans | D27: 1300000
C28: - Current Insurance Cover | D28: 5000000
C29: - Current Investments (Equity,Real Estate,Debt) | D29: 2500000
C31: Final Insurance Cover Needed | G31: =G25+D27-D28-D29 -> 11488620.7
C37: Insurance Need Analysis on Human Life Value Basis
C38: Current Age | D38: 30
C39: Retirement Age | D39: 60
C40: Yearly Income | D40: 500000
C41: Yearly Income Increment Exp. In % | D41: 10
C42: Total Earning in his working life span | D42: =FV(D41%,(D39-D38),-D40) -> 82247011.34
C43: Return Expected in % for Investment Insurance Claim Amount | D43: 8
C44: Human Life Value | D44: =PV(D43%,(D39-D38),,-D42) -> 8173488.598
C45: + Current Loans | D45: 1000000
C46: - Current Insurance Cover | D46: 500000
C47: Insurance Cover Needed | D47: =D44+D45-D46 -> 8673488.598

Sheet Risk Profiling
B5: The risk profiling questionnaire is meant to measure the risk tolerance as well as time horizon in investing. The questionnaire is designed to show which type of investment approach may suit you best. Each answer would be given a point. The total score would suggest the appropriate risk profile for you. Our Advice: There are not any right or wrong answers, please follow your instincts and answer the question. Please answer the following questions by selecting only one response to each question.
B13: (1) What is Your Current Age? | J13: (5) How many people depend on you
B14: A | C14: 18 to 30 years old | J14: financially?
B15: B | C15: 31 to 40 years old | J15: A | K15: 0
B16: C | C16: 41 to 50 years old | J16: B | K16: 1
B17: D | C17: 51 to 60 years old | J17: C | K17: 1, but someone who work | O17: A
B18: E | C18: Above 60 years old | J18: D | K18: 2 to 3 | O18: B
C19: Select the Answer | F19: C | J19: E | K19: More than 3 | O19: C
B20: (2) How many months of expenses can your | K20: Select the Answer | N20: C | O20: D
B21: emergency fund cover? | J21: (6) In order to achieve high returns I am | O21: E
B22: A | C22: I currently have no emergency fund | J22: willing to choose high risk investments.
B23: B | C23: Less than 3 months | J23: A | K23: Strongly Agree
B24: C | C24: 4 to 6 months | J24: B | K24: Agree
B25: D | C25: 7 to 9 months | J25: C | K25: Neutral
B26: E | C26: More than 9 months | J26: D | K26: Disagree
C27: Select the Answer | F27: D | J27: E | K27: Strongly disagree
B28: (3) What percentage of your monthly income | K28: Select the Answer | N28: D
B29: can be invested? | J29: (7) What Is your expected rate of return from
B30: A | C30: 0 to 10% | J30: your investments?
B31: B | C31: 11 to 20% | J31: A | K31: Potential return of 6% per anuum
B32: C | C32: 21 to 30% | J32: B | K32: Potential return of 10% per anuum
B33: D | C33: More than 30% | J33: C | K33: Potential return of 12% per annum
B34: E | C34: I currently have no income | J34: D | K34: Potential return of 15% per annum
C35: Select the Answer | F35: C | J35: E | K35: Potential return of more than 15% per annum
K36: Select the Answer | N36: E
B45: (4) When do you expect to liquidate your | J45: (8) I would start to worry about my investments
B46: investment? | J46: if my portfolio value falls
B47: A | C47: Less than 1 year | J47: A | K47: Less than 5% per anuum
B48: B | C48: 1 to 2 years | J48: B | K48: 5%-10% per anuum
B49: C | C49: 3 to 5 years | J49: C | K49: 10%-20% per anuum
B50: D | C50: 6 to 7 years | J50: D | K50: 20%-30% per annum
B51: E | C51: More than 7 years | J51: E | K51: More than 30% per annum
C52: Select the Answer | F52: C | K52: Select the Answer | N52: B
B53: (9) Maximum Allocation in your current | J53: (11) What is your primary Investment objective?
B54: Portfolio pertains to | J54: A | K54: Capital Preservation
B55: A | C55: Savings and Fixed Deposits | J55: B | K55: Capital Appreciation
B56: B | C56: Bonds | J56: C | K56: Retirement Planning
B57: C | C57: Equities | J57: D | K57: Children Education
B58: D | C58: Mutual Funds | J58: E | K58: Future Lifestyle Improvement
B59: E | C59: Derivatives Option, swaps and futures | K59: Select the Answer | N59: D
C60: Select the Answer | F60: D | J60: (12) What is your annual take home income?
B61: (10) I prefer to keep capital safe rather than | J61: A | K61: Under INR 2,00,000
B62: have high returns | J62: B | K62: INR 2,00,000 to 5,00,000
B63: A | C63: Strongly Agree | J63: C | K63: INR 5,00,000 to 10,00,000
B64: B | C64: Agree | J64: D | K64: INR 10,00,000 to 20,00,000
B65: C | C65: Neutral | J65: E | K65: Over INR 20,00,000
B66: D | C66: Disagree | K66: Select the Answer | N66: B
B67: E | C67: Strongly disagree | J67: (13) Do you have any borrowings other than
C68: Select the Answer | F68: B | J68: home loan?
J69: A | K69: Yes
J70: B | K70: No
K71: Select the Answer | N71: A
E75: Question No. | G75: A | H75: B | I75: C | J75: D | K75: E | L75: Points
E76: 1 | G76: 5 | H76: 4 | I76: 3 | J76: 2 | K76: 1 | L76: =IF(F19="A",5,IF(F19="B",4,IF(F19="C",3,IF(F19="D",2,IF(F19="E",1,0))))) -> 3
E77: 2 | G77: 1 | H77: 2 | I77: 3 | J77: 4 | K77: 5 | L77: =IF(F27="A",1,IF(F27="B",2,IF(F27="C",3,IF(F27="D",4,IF(F27="E",5,0))))) -> 4
E78: 3 | G78: 2 | H78: 3 | I78: 4 | J78: 5 | K78: 1 | L78: =IF(F35="A",2,IF(F35="B",3,IF(F35="C",4,IF(F35="D",5,IF(F35="E",1,0))))) -> 4
E79: 4 | G79: 1 | H79: 2 | I79: 3 | J79: 4 | K79: 5 | L79: =IF(F52="A",1,IF(F52="B",2,IF(F52="C",3,IF(F52="D",4,IF(F52="E",5,0))))) -> 3
E80: 5 | G80: 5 | H80: 3 | I80: 4 | J80: 2 | K80: 1 | L80: =IF(N20="A",5,IF(N20="B",3,IF(N20="C",4,IF(N20="D",2,IF(N20="E",1,0))))) -> 4
E81: 6 | G81: 5 | H81: 4 | I81: 3 | J81: 2 | K81: 1 | L81: =IF(N28="A",5,IF(N28="B",4,IF(N28="C",3,IF(N28="D",2,IF(N28="E",1,0))))) -> 2
E82: 7 | G82: 1 | H82: 2 | I82: 3 | J82: 4 | K82: 5 | L82: =IF(N36="A",1,IF(N36="B",2,IF(N36="C",3,IF(N36="D",4,IF(N36="E",5,0))))) -> 5
E83: 8 | G83: 1 | H83: 2 | I83: 3 | J83: 4 | K83: 5 | L83: =IF(N52="A",1,IF(N52="B",2,IF(N52="C",3,IF(N52="D",4,IF(N52="E",5,0))))) -> 2
E84: 9 | G84: 1 | H84: 2 | I84: 3 | J84: 4 | K84: 5 | L84: =IF(F60="A",1,IF(F60="B",2,IF(F60="C",3,IF(F60="D",4,IF(F60="E",5,0))))) -> 4
E85: 10 | G85: 1 | H85: 2 | I85: 3 | J85: 4 | K85: 5 | L85: =IF(F68="A",1,IF(F68="B",2,IF(F68="C",3,IF(F68="D",4,IF(F68="E",5,0))))) -> 2
E86: 11 | G86: 1 | H86: 5 | I86: 3 | J86: 2 | K86: 4 | L86: =IF(N59="A",1,IF(N59="B",5,IF(N59="C",3,IF(N59="D",2,IF(N59="E",4,0))))) -> 2
E87: 12 | G87: 1 | H87: 2 | I87: 3 | J87: 4 | K87: 5 | L87: =IF(N66="A",1,IF(N66="B",2,IF(N66="C",3,IF(N66="D",4,IF(N66="E",5,0))))) -> 2
E88: 13 | G88: 5 | H88: 1 | L88: =IF(N71="A",5,IF(N71="B",1,0)) -> 5
E90: Calculate My Risk Level
E91: Your Risk Score | G91: =SUM(L76:L88) -> 42
E92: Your Risk Profile | G92: =IF(G91<=17,"Conservatice",IF(G91<=24,"Moderatly Conservative",IF(G91<=31,"Balanced",IF(G91<=38,"Moderatly Aggressive","Aggressive")))) -> Aggressive
G95: Total Score | H95: Risk Profile
G96: 10 -- 17 | H96: Conservative
G97: 18 -- 24 | H97: Moderately Conservative
G98: 25 -- 31 | H98: Balanced
G99: 32 -- 38 | H99: Moderately Aggressive
G100: >= 39 | H100: Aggressive
B103: Signature of Client
B104: Name of Client
B105: Date
B107: Disclaimer :-The results of this questionnaire are derived from information that you have provided. We accepts no responsibility or liability for the accuracy or completeness of the information given. The information provided is used as a general guide to help you assess your risk profile. This questionnaire and the results are not to be constructed as an offer or solicitation for the subscription, purchase or sale of any mutual fund and they should not be considered as any form of investment advice. Investment in any securities (including mutual funds) is subject to investment risk, including the possible loss of principal amount invested. Past performance and any forecast is not necessarily indicative of the future or likely performance of the fund. Read all scheme related documents carefully before investing.
